Cogmind - Beta 16 @@@ ROGUE MODE // 2025.11.01 @ 11:09:57 Player: H3-MLN Result: Destroyed by YI-UF0 with YI-UF0's Doublenader Performance ------------- Evolutions (0) 0 Regions Visited (2) 400 Robots Destroyed (16) 80 Value Destroyed (338) 338 Prototype IDs (0) 0 Alien Tech Used (0) 0 Bonus (-102) -102 TOTAL SCORE: 716 Bonus ------- Friendly Fire -102 Cogmind --------- Core Integrity 0/250 Matter 377/400 Energy 125/125 System Corruption 0% Temperature Cool (30) Movement Rolling (175) Ox5 Location -10/Mines Parts ------- > --- POWER (1) -------- Light Ion Engine > --- PROPULSION (2) --- Compact Wheel > --- UTILITY (2) ------ Huge Storage Unit Medium Matter Pod > --- WEAPON (2) ------- Small Laser > --- INVENTORY (25) --- Ion Engine Light Ion Engine Wheel Compact Wheel Huge Storage Unit Small Laser Grenade Launcher Mining Laser Peak State ------------ > --- POWER ------------ Light Ion Engine > --- PROPULSION ------- Light Treads Wheel > --- UTILITY ---------- Huge Storage Unit Medium Matter Pod > --- WEAPON ----------- Assault Rifle Light Assault Rifle > --- INVENTORY -------- Ion Engine Light Ion Engine Light Treads Compact Wheel Compact Wheel Huge Storage Unit Small Laser Small Laser Grenade Launcher Mining Laser [Rating: 8] Favorites ----------- Power Light Ion Engine Engine Light Ion Engine Propulsion Light Treads Treads Light Treads Wheel Wheel Utility Medium Matter Pod Storage Medium Matter Pod Weapon Assault Rifle Energy Gun Small Laser Ballistic Gun Assault Rifle Launcher Grenade Launcher Build | -11 -10 -10 ------- Run | Yrd Mat Min Slots Evolved . | . . . Power . | . . . Propulsion . | . . . Utility . | . . . Weapon . | . . . Parts Attached 15 | 6 2 7 Power 2 | 1 . 1 Engine 2 | 1 . 1 Core . | . . . Reactor . | . . . Propulsion 5 | 2 . 3 Treads 2 | 1 . 1 Leg . | . . . Wheel 3 | 1 . 2 Hover . | . . . Flight . | . . . Utility 2 | . 2 . Device . | . . . Storage 2 | . 2 . Processor . | . . . Hackware . | . . . Protection . | . . . Artifact . | . . . Weapon 6 | 3 . 3 Energy Gun 3 | 2 . 1 Energy Cannon . | . . . Ballistic Gun 2 | 1 . 1 Ballistic Cannon . | . . . Launcher 1 | . . 1 Special Weapon . | . . . Impact Weapon . | . . . Slashing Weapon . | . . . Piercing Weapon . | . . . Special Melee Weapon . | . . . Unidentified Prototypes . | . . . Parts Lost 7 | . . 7 Power 1 | . . 1 Propulsion 3 | . . 3 Utility . | . . . Weapon 3 | . . 3 Highest Loss Streak 4 | . . 4 To Critical Strikes . | . . . Average Backups 5 | 2 4 9 Power 1 | . 1 1 Propulsion 2 | 1 2 2 Utility . | . . 1 Weapon 2 | . 1 3 Tool/Special . | . . . Unused Backups 4 | . . 4 Power 2 | . . 2 Propulsion 1 | . . 1 Utility 1 | . . 1 Weapon . | . . . Tool/Special . | . . . Average Slot Usage (%) 86 | . 84 99 Engine 14 | . 14 14 Treads 14 | . 14 17 Wheel 13 | . 14 10 Storage 15 | . 13 28 Energy Gun 12 | . 14 . Ballistic Gun 15 | . 14 27 Peak Build Rating 8 | 5 7 8 Average Rating 6 | 4 5 7 On Entrance 4 | . 5 7 Avg Prop Armor Cover (%) 11 | 5 9 12 Naked Turns . | . . . Heaviest Build 88 | 6 88 88 Greatest Support 40 | 20 20 40 Greatest Overweight (x) 8 | . 8 8 Average Overweight (x) 6 | . 2 7 Largest Inventory Capacity 25 | 5 25 25 Average Capacity 7 | 5 5 25 Most Carried 12 | 4 7 12 Average Carried 5 | 2 4 10 Final Capacity 25 | 5 25 25 Final Carried 8 | 4 7 8 Class Distribution -------------------- 100% | Mutant Dominant Class ---------------- Mutant | -10/Materials Mutant | -10/Mines Resources | -11 -10 -10 ----------- Run | Yrd Mat Min Matter Collected 605 | 263 84 258 Remotely . | . . . Salvage Created 574 | . 121 453 Parts 34 | . 11 23 Haulers Intercepted . | . . . Recyclers Shooed 1 | . . 1 Parts Field Recycled . | . . . Retrieved Matter . | . . . Parts Self-Destructed . | . . . Prevented . | . . . Parts Restored . | . . . Kills | -11 -10 -10 ------- Run | Yrd Mat Min Combat Hostiles Destroyed 12 | . 5 7 Guns 9 | . 5 4 AOE 3 | . . 3 Classes Destroyed 4 | . 2 2 Tunneler 1 | . . 1 Recycler 3 | . . 3 Swarmer 6 | . 3 3 Grunt 6 | . 2 4 Best Kill Streak 5 | . 5 5 Combat Bots Only 5 | . 5 3 Max Kills in Single Turn 3 | . 1 3 Gunslinging . | . . . Exploded 2 | . . 2 Melee . | . . . Uniques/NPCs Destroyed . | . . . Combat | -11 -10 -10 -------- Run | Yrd Mat Min Hostile Shots Fired 73 | . 24 49 Missed 19 | . 8 11 Hits 54 | . 16 38 Projectile 54 | . 16 38 AOE 15 | . . 15 Damage Taken 1006 | . 153 853 Core 256 | . 8 248 Absorbed by Shields . | . . . Core Remaining (%) 100 | 100 . . Volleys Fired 60 | 2 24 34 Largest 2 | 2 2 2 Hottest 60 | 60 60 60 Shots Fired 117 | 4 48 65 Gun 115 | 4 48 63 Cannon . | . . . Launcher 2 | . . 2 Special . | . . . Kinetic 77 | 2 24 51 Thermal 38 | 2 24 12 Explosive 2 | . . 2 Electromagnetic . | . . . Robot Hit Streak 12 | 2 10 12 Robot Miss Streak 3 | 2 2 3 Penetration Max . | . . . Secondary Targets . | . . . Shots Hit Robots 81 | 2 31 48 Core Hits 29 | . 9 20 Critical Kills . | . . . Critical Parts Destroyed . | . . . Critical Strikes . | . . . Melee Attacks . | . . . Impact . | . . . Slashing . | . . . Piercing . | . . . Sneak Attacks . | . . . Combat Hostiles . | . . . Follow-up Attacks . | . . . Damage Inflicted 1095 | 21 363 711 Guns 875 | 21 363 491 Cannons . | . . . Explosions 220 | . . 220 Melee . | . . . Ramming . | . . . Kinetic 594 | 10 172 412 Thermal 281 | 11 191 79 Explosive 220 | . . 220 Electromagnetic . | . . . Impact . | . . . Slashing . | . . . Piercing . | . . . Highest Corruption . | . . . Average Corruption . | . . . Corruption Purged . | . . . Corruption Blocked . | . . . Overload Shots . | . . . Overflow Damage . | . . . Projectiles . | . . . Explosions . | . . . Melee . | . . . Knockbacks . | . . . Impact . | . . . Kinetic . | . . . Secondary . | . . . Self-Inflicted Damage 11 | . . 11 Shots 1 | . . 1 Rammed . | . . . Targets Rammed . | . . . Kicked . | . . . Crushed . | . . . Highest Temperature 99 | . 48 99 Average Temperature 37 | . 28 43 Received Heat Transfer 228 | . 48 180 Siege Activations . | . . . Martial Activations . | . . . Shielding Activations . | . . . Robots Disrupted . | . . . Combat Hostiles . | . . . Robots Corrupted . | . . . Combat Hostiles . | . . . Parts Fried . | . . . Impact Corruptions . | . . . Robots Melted . | . . . Combat Hostiles . | . . . Parts Melted 1 | . . 1 Heat Transferred 625 | 25 425 175 Parts Sabotaged . | . . . Parts Stolen . | . . . Parts Stripped . | . . . Power Chain Reactions . | . . . Alert | -11 -10 -10 ------- Run | Yrd Mat Min Maximum Alert Level . | . . . Low Security (%) 100 | 100 100 100 Level 1 . | . . . Level 2 . | . . . Level 3 . | . . . Level 4 . | . . . Level 5 . | . . . High Security . | . . . Max Security . | . . . Peak Influence 103 | . 102 103 Initial 5 | . . 5 Average 3 | . 1 20 Influence Increases 372 | . 134 238 Destroy 0b10 Robot/C 240 | . 100 140 Destroy 0b10 Robot/NC 20 | . . 20 Destroy Leader 50 | . 20 30 Trap Triggered on 0b10 10 | . . 10 Successful Hack 14 | . 14 . Disable Machine 15 | . . 15 Destroy Structure 8 | . . 8 Lose Combat Pursuer 15 | . . 15 Influence Decreases 372 | . 120 252 Entered New Map 9 | . . 9 Time Decay 348 | . 120 228 Lost Part 15 | . . 15 Squads Dispatched . | . . . Investigation . | . . . Extermination . | . . . Reinforcement . | . . . Assault . | . . . Garrison . | . . . Intercept . | . . . Searches Triggered . | . . . Construction Impeded . | . . . Haulers Reinforced . | . . . Active Scanning Responses . | . . . Cargo Convoy Interrupts . | . . . Stealth | -11 -10 -10 --------- Run | Yrd Mat Min Distress Signals . | . . . Communications Jammed . | . . . Distress Signals . | . . . Times Spotted 15 | . 6 9 Peak Tracking Total 5 | . 5 3 Tactical Retreats 1 | . . 1 Traps | -11 -10 -10 ------- Run | Yrd Mat Min Traps Triggered . | . . . Indirectly . | . . . Trap Hack Attempts . | . . . Triggered . | . . . Disarmed . | . . . Reprogrammed . | . . . Reused 1 | . . 1 Traps Extracted . | . . . Installed 2 | . . 2 Triggered 1 | . . 1 Most Traps Carried 2 | . . 2 Machines | -11 -10 -10 ---------- Run | Yrd Mat Min Machines Disabled 1 | . . 1 Max in Single Turn 1 | . . 1 Machines Repaired . | . . . Machines Dismantled . | . . . Machines Sabotaged . | . . . Overloaded Fab Kills . | . . . Hacking | -11 -10 -10 --------- Run | Yrd Mat Min Machines Accessed 2 | . 2 . Terminals 2 | . 2 . Fabricators . | . . . Repair Stations . | . . . Recycling Units . | . . . Scanalyzers . | . . . Garrison Access . | . . . Total Hacks 7 | . 7 . Successful 1 | . 1 . Failed 6 | . 6 . Catastrophic . | . . . Database Lockouts . | . . . Manual 7 | . 7 . Terminals 7 | . 7 . Fabricators . | . . . Repair Stations . | . . . Recycling Units . | . . . Scanalyzers . | . . . Garrison Access . | . . . Terminal Hacks . | . . . Fabricator Hacks . | . . . Repair Station Hacks . | . . . Recycling Unit Hacks . | . . . Scanalyzer . | . . . Garrison Access Hacks . | . . . Unauthorized Hacks 1 | . 1 . Terminals 1 | . 1 . Botnet 1 | . 1 . Fabricators . | . . . Repair Stations . | . . . Recycling Units . | . . . Scanalyzers . | . . . Garrison Access . | . . . Data Cores Recovered . | . . . Used . | . . . Hacking Detections 2 | . 2 . Full Trace Events . | . . . Feedback Events . | . . . Feedback Blocked . | . . . Robot Schematics Acquired . | . . . Robots Built . | . . . Authchips . | . . . Time . | . . . Total Robot Build Rating . | . . . Part Schematics Acquired . | . . . Parts Built . | . . . Authchips . | . . . Time . | . . . Total Part Build Rating . | . . . Part Studies Acquired . | . . . Parts Repaired . | . . . Time . | . . . Parts Recycled . | . . . Recycled Matter . | . . . Retrieved Matter . | . . . Retrieved Components . | . . . Parts Scanalyzed . | . . . Part Schematics Acquired . | . . . Parts Damaged . | . . . Bothacking | -11 -10 -10 ------------ Run | Yrd Mat Min Used RIF Installer . | . . . Robots Hacked . | . . . Non-combat . | . . . Combat . | . . . Robot Hacks Applied . | . . . Relay Couplers Released . | . . . Fabnet Peak Effective % . | . . . Robots Rewired . | . . . Allies Hacked . | . . . Hacks Repelled . | . . . Allies | -11 -10 -10 -------- Run | Yrd Mat Min Total Allies . | . . . Largest Group . | . . . Highest-Rated Group . | . . . Highest-Rated Ally . | . . . Total Orders . | . . . Ally Attacks . | . . . Total Damage . | . . . Kills . | . . . Allies Corrupted . | . . . Allies Melted . | . . . Intel | -11 -10 -10 ------- Run | Yrd Mat Min Active Infowar (turns) . | . . . Robot Analysis Total . | . . . Derelict Logs Recovered . | . . . Drone Launches . | . . . Drone Recoveries . | . . . Exploration | -11 -10 -10 ------------- Run | Yrd Mat Min Turns Passed 10743 | 77 9462 1204 Spaces Moved 513 | 44 88 381 Core 10 | 10 . . Treads 90 | 33 37 20 Legs . | . . . Wheels 413 | 1 51 361 Hover . | . . . Flight . | . . . Fastest Speed 50 | 50 80 200 Average Speed 190 | 133 153 206 Slowest Speed 320 | 160 200 320 Overloaded Moves . | . . . Propulsion Burnouts . | . . . Robots Hopped . | . . . Potential Cave-ins . | . . . Cave-ins Triggered . | . . . Exploration Rate (%) 22 | 3 17 46 Regions Visited 2 Branch Regions 1 Pre-discovered Areas . | . . . Known Exits Taken . | . . . Unknown Exits Taken 2 | 1 1 . Scrap Searched . | . . . Spaces Dug . | . . . Terrain Destroyed 8 | . . 8 Melee . | . . . Projectile . | . . . AOE 8 | . . 8 Terrain Rammed . | . . . Walls Destroyed . | . . . Machines Disabled . | . . . Actions | -11 -10 -10 --------- Run | Yrd Mat Min Total 10163 | 56 9367 740 Wait 9556 | 1 9250 305 Move 511 | 43 87 381 Hop . | . . . Pick Up 16 | 4 4 8 Fast Attach 6 | 5 1 . Attach 6 | . 1 5 Detach . | . . . Swap 4 | 1 . 3 Drop 2 | . . 2 Fire 60 | 2 24 34 Melee . | . . . Ram . | . . . Kick . | . . . Crush . | . . . Escape Stasis . | . . . Rewire . | . . . Trap 2 | . . 2 Miscellaneous . | . . . Route ------- -11/Scrapyard -10/Materials -10/Mines (discovered 4 exits: [*Mat x2] / [*Exi] / [*Sub]) History --------- Turn | Location | Event 3 | -11/Scrapyard | Discovered new exit (range 15) 78 | -11/Scrapyard | Entered Materials 310 | -10/Materials | Build established: Mutant 9505 | -10/Materials | Discovered new exit (range 15) 9540 | -10/Materials | Entered Mines 9593 | -10/Mines | Lost 3 parts (1p1n1w) 9630 | -10/Mines | Discovered new exit (range 10) 9761 | -10/Mines | Discovered new exit (range 6) 9788 | -10/Mines | YI-UF0 nonchalantly dropped a Grenade Launcher on the ground 9841 | -10/Mines | Found a hidden stash of uninstalled traps 10340 | -10/Mines | Deemed a non-threat by the Exiles lab entrance 10342 | -10/Mines | Discovered new exit (range 5) 10729 | -10/Mines | Core integrity fell below 50% 10740 | -10/Mines | Discovered new exit (range 6) 10743 | -10/Mines | Core integrity fell below 20% 10744 | -10/Mines | Destroyed by YI-UF0 with YI-UF0's Doublenader Last Messages --------------- 10192_ Acquired 22 matter. 10193_ K-01 Serf collects debris. 10216_ YI-UF0 mumbles something. 10247_ Dropped Explosive Trap. 10248_ Installed Explosive Trap. 10253_ Acquired 10 matter. 10282_ G-34 Mercenary destroyed. 10289_ Acquired 20 matter. 10291_ Dropped Explosive Trap. 10293_ Installed Explosive Trap. 10340_ "No threat detected, you may enter." 10342_ EXIT=FOUND 10455_ YI-UF0 mumbles something. 10729_ YI-UF0: "BOOM TO YOU TOO!" 10730_ Assault Rifle destroyed. 10734_ YI-UF0 mumbles something. 10738_ Lgt. Treads destroyed. 10740_ EXIT=FOUND 10741_ The unstable cave ceiling collapses. 10744_ Lgt. Assault Rifle destroyed. Map ----- +----------------------------------------------------+ | | | | | | | | | | | | | | | | | | | | | | | | | | | | | | | ????????????????????????????????? | | ???????????????????????###??????? | | ??????????????????????## ##????? | | ?????????????????????## g #????? | | ????###??????????????# #????? | | ????